bitfinex/quotes_ETHUSD_20251118
["timestamp","ask_amount","ask_price","bid_price","bid_amount"]
[1763498814691,0.6465,3135.0,3134.1,0.4467]
[1763498815520,0.6465,3135.0,3134.5,0.003]
[1763498816026,0.4588,3134.9,3134.5,0.003]
[1763498817522,1.36579264,3134.9,3134.5,0.003]
[1763498818120,0.4699,3134.6,3134.5,0.003]
[1763498818354,0.65346926,3134.6,3134.5,0.003]
[1763498818550,1.11226926,3134.6,3134.5,0.003]
[1763498818960,0.18356926,3134.6,3134.5,0.3397]
[1763498819254,0.4588,3135.4,3134.5,0.6764]
[1763498819421,0.4588,3135.4,3134.5,0.3397]
[1763498820058,4.26999264,3135.3,3134.5,0.003]
[1763498820356,0.90699264,3135.2,3134.5,0.003]
[1763498820661,0.4699,3134.6,3134.5,0.003]
[1763498821357,5.19869264,3134.6,3134.5,0.003]
[1763498823543,1.37689264,3134.6,3134.5,0.003]
[1763498824331,1.83569264,3134.6,3134.5,0.003]
[1763498825030,1.83569264,3134.6,3134.5,0.004]
[1763498825226,2.0192619,3134.6,3134.5,0.004]
[1763498825471,8.80626381,3134.6,3134.1,0.0396]
[1763498825785,5.14539664,3134.2,3134.1,0.0406]
[1763498825927,21.18066255,3134.2,3134.1,0.0406]
[1763498826122,10.75289181,3134.2,3134.1,0.0406]
[1763498826360,5.89625555,3134.2,3134.1,0.0406]
[1763498826561,5.49075155,3134.2,3134.1,0.0406]
[1763498827260,8.32953555,3134.2,3134.1,0.0406]
[1763498828463,36.29477103,3134.2,3134.1,0.0406]
[1763498828634,36.00534203,3134.2,3134.1,0.0406]
[1763498828991,15.16792703,3134.2,3134.1,0.0406]
[1763498829169,5.89625555,3134.2,3134.1,0.0406]
[1763498830664,8.61145155,3134.2,3134.1,0.0406]
[1763498830966,5.89625555,3134.2,3134.1,0.0406]
[1763498831168,5.49075155,3134.2,3134.1,0.0406]
[1763498831373,8.15622455,3134.2,3134.1,0.0406]
[1763498831559,6.71187801,3134.2,3134.1,0.0406]
[1763498832086,2.94337401,3134.2,3134.1,0.0406]
[1763498832295,2.12775155,3134.2,3134.1,0.0406]
[1763498832482,1.66895155,3134.2,3134.1,0.0406]
[1763498832989,2.14835155,3134.2,3134.1,0.0406]
[1763498833359,0.29205891,3134.2,3134.1,0.3813]
[1763498833555,0.29205891,3134.5,3134.1,0.4517]
[1763498833761,0.29205891,3134.7,3134.5,0.3407]
[1763498834077,0.29205891,3135.2,3134.5,0.3407]
[1763498834270,0.29205891,3135.1,3134.6,0.3407]
[1763498834471,0.29205891,3135.0,3134.6,0.6814]
[1763498834812,0.29205891,3135.5,3134.9,0.3407]
[1763498835111,0.29205891,3135.4,3134.9,0.3407]
[1763498835272,0.29205891,3135.3,3134.9,0.3407]
[1763498835591,0.29205891,3135.2,3134.9,0.3407]
[1763498835819,0.29205891,3135.1,3134.9,0.3407]
[1763498835999,0.29205891,3135.0,3134.9,0.3407]
[1763498837891,0.29205891,3135.5,3134.9,0.3407]
[1763498838209,0.29205891,3135.4,3134.9,0.3407]
[1763498838364,1.67845155,3135.8,3134.6,0.3407]
[1763498838692,0.81491407,3135.7,3134.6,0.3407]
[1763498838896,0.29205891,3135.6,3134.6,0.3407]
[1763498839066,0.29205891,3135.5,3134.6,0.3407]
[1763498839270,0.29205891,3135.4,3134.6,0.3407]
[1763498839494,0.29205891,3135.7,3134.6,0.3407]
[1763498839700,0.29205891,3135.6,3134.6,0.3407]
[1763498839901,0.29205891,3135.5,3134.6,0.3407]
[1763498840068,0.29205891,3135.4,3134.6,0.3407]
[1763498840270,0.29205891,3135.7,3134.6,0.3407]
[1763498840600,0.29205891,3135.6,3134.6,0.3407]
[1763498840770,0.4794,3135.8,3134.6,0.3407]
[1763498840771,0.29205891,3135.5,3134.6,0.3407]
[1763498840970,0.29205891,3135.7,3134.6,0.3407]
[1763498841170,0.29205891,3135.6,3134.6,0.3407]
[1763498841394,0.29205891,3135.5,3134.6,0.3407]
[1763498841590,0.29205891,3135.7,3134.6,0.3407]
[1763498841805,0.29205891,3135.6,3134.6,0.3407]
[1763498841972,0.29205891,3135.7,3134.6,0.3407]
[1763498842300,0.29205891,3135.6,3134.1,0.111]
[1763498842470,0.29205891,3135.5,3134.2,0.3407]
[1763498842675,0.29205891,3135.4,3134.2,0.3407]
[1763498842987,0.29205891,3135.7,3134.2,0.3407]
[1763498843192,0.29205891,3135.6,3134.2,0.3407]
[1763498843396,0.29205891,3135.5,3134.2,0.3407]
[1763498843590,0.29205891,3135.6,3134.2,0.3407]
[1763498843796,0.29205891,3135.5,3134.5,0.001]
[1763498844008,0.29205891,3135.8,3134.5,0.001]
[1763498844173,0.29205891,3135.8,3134.6,0.3407]
[1763498844380,0.29205891,3135.7,3134.5,0.3417]
[1763498844790,0.78945891,3135.7,3134.5,0.3417]
[1763498845109,0.29205891,3135.6,3134.5,0.3417]
[1763498845304,0.4974,3135.7,3134.5,0.3417]
[1763498849507,0.6845,3136.2,3134.5,0.3417]
[1763498849712,0.4974,3136.0,3134.5,0.3417]
[1763498850412,0.29408974,3136.1,3134.5,0.3417]
[1763498850607,0.48118974,3136.2,3134.5,0.3417]
[1763498850845,0.52485824,3136.1,3134.5,0.3417]
[1763498851008,0.1871,3136.2,3134.6,0.405504]
[1763498851511,0.4974,3136.7,3134.8,0.405504]
[1763498852008,0.4974,3136.7,3134.5,0.001]
[1763498852009,0.4974,3136.7,3134.9,0.3407]
[1763498852310,1.40439264,3136.7,3134.9,0.3407]
[1763498852495,0.29401601,3136.6,3134.9,0.3407]
[1763498852700,0.16984087,3136.5,3134.9,0.3407]
[1763498853101,0.66724087,3136.5,3134.9,0.3407]
[1763498853719,0.4974,3136.5,3134.9,0.3407]
[1763498856615,0.29380646,3136.7,3135.0,0.405504]
[1763498856825,0.4984,3136.8,3135.0,0.405504]
[1763498857113,0.4984,3136.8,3135.1,0.4315]
[1763498857318,0.16994828,3136.7,3135.1,0.4315]
[1763498857502,0.16994828,3136.7,3135.2,0.3407]
[1763498858020,0.66834828,3136.7,3135.2,0.3407]
[1763498858223,0.4984,3136.7,3135.2,0.3407]
[1763498858387,0.4984,3136.6,3135.2,0.3407]
[1763498859818,0.4984,3136.6,3135.1,0.0908]
[1763498859819,4.26999264,3136.5,3135.1,0.0908]
[1763498860035,4.26999264,3136.2,3134.7,0.3407]
[1763498860385,3.8614,3136.1,3134.7,0.3407]
[1763498860632,0.47683926,3136.0,3134.7,0.3407]
[1763498860840,0.97523926,3136.0,3134.7,0.3407]
[1763498861135,0.1993,3135.9,3134.7,0.3407]
[1763498861335,0.6977,3135.9,3134.7,0.3407]
[1763498861535,0.29476087,3135.8,3134.5,0.001]
[1763498861687,0.79316087,3135.8,3134.5,0.001]
[1763498861892,0.79316087,3135.8,3134.5,0.3417]
[1763498862162,0.4984,3135.7,3134.5,0.3417]
[1763498864021,0.2950346,3135.8,3134.5,0.3417]
[1763498864226,0.4984,3135.7,3134.5,0.3417]
[1763498865432,0.2950346,3135.8,3134.5,0.3417]
[1763498865736,0.6977,3135.9,3134.5,0.3417]
[1763498865943,0.2950346,3135.8,3134.5,0.3417]
[1763498866936,0.4984,3135.7,3134.5,0.3417]
[1763498869135,0.2950346,3135.8,3134.5,0.3417]
[1763498869362,0.4984,3135.7,3134.5,0.3417]
[1763498869722,0.17004272,3135.6,3134.5,0.3417]
[1763498870253,0.17004272,3135.6,3134.5,0.001]
[1763498870459,0.90699264,3135.3,3134.5,0.3417]
[1763498870863,0.90699264,3135.5,3134.5,0.3417]
[1763498871367,0.4984,3135.7,3134.5,0.3417]
[1763498871922,0.29564102,3135.8,3135.6,0.3407]
[1763498872270,0.1993,3136.0,3134.5,0.3417]
[1763498872424,0.6977,3136.0,3134.5,0.3417]
[1763498873476,0.7924658,3135.9,3134.5,0.3417]
[1763498874183,0.29569654,3135.9,3134.6,0.405504]
[1763498874386,0.29570902,3136.2,3134.6,0.405504]
[1763498874586,0.79410902,3136.2,3134.7,0.3407]
[1763498874949,0.79410902,3136.2,3134.8,0.405504]
[1763498875153,0.4984,3136.4,3134.8,0.405504]
[1763498875378,0.2957508,3136.3,3134.9,0.3407]
[1763498875679,0.4984,3136.4,3134.9,0.3407]
[1763498875884,1.21006588,3136.4,3134.9,0.3407]
[1763498876054,0.2957508,3136.3,3134.9,0.3407]
[1763498877050,0.4984,3136.4,3134.9,0.3407]
[1763498877284,0.2957508,3136.5,3136.3,0.3407]
[1763498877488,0.5004,3136.6,3135.0,0.405504]
[1763498877778,1.21206588,3136.6,3135.2,0.405504]
[1763498877983,0.2957508,3136.5,3135.2,0.405504]
[1763498878280,0.2957508,3136.5,3135.3,0.3407]
[1763498878281,0.4984,3136.4,3135.3,0.3407]
[1763498880170,0.4984,3136.4,3135.1,0.0908]
[1763498880378,4.26999264,3136.3,3135.1,0.4315]
[1763498880565,0.90699264,3136.1,3135.1,0.0908]
[1763498880899,0.4986,3135.2,3134.5,0.3417]
[1763498881596,0.1993,3135.4,3134.5,0.3417]
[1763498882879,0.4984,3135.5,3134.5,0.3417]
[1763498889398,0.002,3135.6,3134.5,0.3417]
[1763498889629,0.4777,3135.6,3134.5,0.3417]
[1763498892262,0.4777,3135.6,3134.5,0.001]
[1763498892400,3.363,3135.4,3134.5,0.001]
[1763498892604,1.3339919,3135.3,3134.5,0.001]
[1763498892812,0.42699926,3135.3,3134.5,0.001]
[1763498893135,0.4757,3135.2,3134.5,0.3417]
[1763498893445,0.4757,3135.2,3134.5,0.001]
[1763498895833,0.29559411,3135.4,3134.5,0.001]
[1763498896052,0.77129411,3135.4,3134.5,0.3417]
[1763498896473,0.4757,3135.3,3134.5,0.3417]
[1763498897653,0.4757,3135.3,3134.5,0.001]
[1763498898220,0.6619,3134.6,3134.5,0.001]
[1763498898852,1.1376,3134.6,3134.5,0.001]
[1763498902449,5.40759264,3134.6,3134.5,0.001]
[1763498902648,6.24320078,3134.6,3134.5,0.001]
[1763498905139,2.5853519,3134.6,3134.5,0.001]
[1763498905338,2.04459264,3134.6,3134.5,0.001]
[1763498908444,0.18,3135.0,3134.5,0.3417]
[1763498908645,0.4885,3135.4,3134.5,0.3417]
[1763498908845,0.4885,3135.4,3134.9,0.3407]
[1763498909742,0.002,3135.5,3135.3,0.4315]
[1763498910151,0.002,3135.5,3135.4,0.3407]
[1763498910939,0.9608,3135.5,3134.6,0.3407]
[1763498911147,0.4703,3135.4,3134.5,0.001]
[1763498911347,0.65727926,3135.4,3134.5,0.3417]
[1763498912051,0.002,3135.5,3134.5,0.3417]
[1763498913475,0.002,3135.5,3135.4,0.3407]
[1763498914476,0.002,3135.5,3135.2,0.0908]
[1763498914789,0.4723,3135.5,3135.2,0.0908]
[1763498915780,0.002,3135.5,3135.2,0.0908]
[1763498915977,0.002,3135.5,3135.4,0.3407]
[1763498918482,0.9408,3135.5,3134.7,0.3407]
[1763498918862,0.471,3135.5,3134.7,0.3407]
[1763498919461,0.002,3135.5,3135.4,0.4315]
[1763498919883,0.002,3135.5,3135.4,0.7722]
[1763498921679,0.002,3135.5,3135.4,0.4315]
[1763498923406,0.002,3135.6,3135.4,1.177704]
[1763498923571,0.002,3135.9,3135.5,1.086904]
[1763498923770,0.002,3135.9,3135.8,0.746204]
[1763498924306,0.002,3135.9,3135.8,1.086904]
[1763498928920,6.9298,3137.5,3135.9,0.405504]
[1763498929234,0.4698,3137.5,3136.5,0.3407]
[1763498929521,0.0516,3137.8,3136.5,0.3407]
[1763498929689,0.4698,3137.4,3136.5,1.1512]
[1763498930733,0.0516,3137.8,3136.5,1.556704]
[1763498932319,0.1935,3137.9,3136.5,1.556704]
[1763498932838,0.6633,3137.9,3136.5,1.556704]
[1763498933504,0.002,3138.1,3136.6,0.405504]
[1763498933747,0.002,3138.1,3137.6,0.3407]
[1763498934346,0.1935,3137.9,3137.6,0.4698]
[1763498934559,0.4718,3138.1,3137.6,0.8105]
[1763498934872,0.9408,3137.7,3136.4,0.5202]
[1763498935172,0.469,3137.3,3136.9,0.4718]
[1763498935329,0.469,3137.0,3136.9,0.4718]
[1763498935528,0.469,3137.0,3136.4,0.1795]
[1763498935752,0.1935,3136.9,3136.4,0.1795]
[1763498936259,0.002,3137.7,3136.4,0.1795]
[1763498936464,0.4698,3137.3,3136.4,0.5202]
[1763498936676,0.4698,3137.3,3136.4,0.1795]
[1763498938866,0.4698,3137.6,3136.4,0.5202]
[1763498939237,0.4698,3137.6,3136.5,0.3407]
[1763498939954,0.6625,3136.6,3135.9,0.001]
[1763498940274,0.002,3137.3,3136.2,0.405504]
[1763498940484,0.4718,3137.3,3136.5,0.3407]
[1763498940674,0.002,3137.3,3136.5,0.3407]
[1763498940879,0.002,3137.3,3136.5,0.6814]
[1763498941299,0.4718,3137.3,3136.6,0.405504]
[1763498941499,0.4718,3137.3,3136.5,0.3407]
[1763498941870,0.469,3136.6,3136.5,0.746204]
[1763498942069,0.4718,3137.3,3136.2,0.746204]
[1763498942275,0.4718,3137.3,3136.5,0.3407]
[1763498942472,0.002,3137.3,3136.5,0.3407]
[1763498942677,0.6625,3136.6,3135.4,0.0908]
[1763498942866,0.1935,3136.6,3135.7,0.746204]
[1763498943069,0.1935,3136.6,3136.0,0.4698]
[1763498943504,0.1935,3136.6,3136.1,0.1795]
[1763498943689,0.6633,3136.8,3136.1,0.1795]
[1763498945101,0.002,3137.3,3136.7,0.3407]
[1763498945987,0.4718,3137.3,3136.7,0.3407]
[1763498946583,0.002,3137.3,3137.2,0.3407]
[1763498947502,0.002,3137.3,3136.8,0.3407]
[1763498948471,0.4799,3137.3,3136.4,0.1935]
[1763498951112,0.4799,3137.3,3136.2,0.405504]
[1763498951287,0.4799,3137.3,3136.2,0.885404]
[1763498951920,0.4799,3137.3,3136.2,0.405504]
[1763498953436,0.4799,3137.3,3136.1,0.1795]
[1763498954515,0.4799,3137.3,3135.9,0.001]
[1763498954815,0.4799,3137.3,3136.0,0.405504]
[1763498954816,0.29539126,3137.2,3136.0,0.405504]
[1763498955328,0.4779,3137.1,3136.0,0.405504]
[1763498957335,0.4779,3137.1,3136.1,0.1795]
[1763498957829,0.4699,3136.2,3135.9,0.4809]
[1763498958001,0.4699,3136.2,3136.0,0.001]
[1763498958422,0.4699,3136.1,3136.0,0.001]
[1763498958598,0.6598,3136.3,3136.0,0.001]
[1763498960135,0.1819,3136.3,3136.0,0.001]
[1763498960321,0.4779,3136.6,3136.0,0.001]
[1763498960632,0.29739993,3137.1,3136.1,0.1795]
[1763498960633,0.4779,3137.0,3136.1,0.1795]
[1763498960835,0.1927,3136.9,3136.0,0.001]
[1763498961335,0.4891,3136.8,3136.0,0.001]
[1763498963139,0.4891,3136.8,3136.1,0.1795]
[1763498963537,0.4891,3136.8,3136.0,0.001]
[1763498966973,0.4818,3136.1,3136.0,0.001]
[1763498967338,0.9709,3136.1,3136.0,0.001]
[1763498967845,1.15868926,3136.1,3136.0,0.001]
[1763498969075,0.90699264,3136.6,3136.0,0.001]
[1763498969076,0.4891,3136.6,3136.0,0.001]
[1763498969235,1.09969264,3136.9,3136.0,0.001]
[1763498969436,0.4891,3136.6,3136.0,0.001]
[1763498971374,0.4818,3136.1,3136.0,0.001]
[1763498971884,0.9709,3136.1,3136.0,0.001]
[1763498979008,0.9664,3136.1,3136.0,0.001]
[1763498982397,0.002,3136.6,3136.0,0.3417]
[1763498982584,0.002,3136.6,3136.1,0.1795]
[1763498982895,0.4948,3136.5,3136.0,0.3417]
[1763498983197,0.4948,3136.5,3136.0,0.001]
[1763498984192,0.4716,3136.1,3136.0,0.001]
[1763498985058,0.9664,3136.1,3136.0,0.001]
[1763498986467,0.4716,3136.1,3136.0,0.001]
[1763498987069,0.9664,3136.1,3136.0,0.001]
[1763498992307,0.002,3136.6,3136.0,0.3417]
[1763498992517,0.002,3136.6,3136.1,0.1795]
[1763498992894,0.4968,3136.6,3136.1,0.1795]
[1763498996717,0.79259625,3136.6,3136.1,0.1795]
[1763498996934,0.4968,3136.6,3136.1,0.1795]
[1763498998296,0.79268997,3136.6,3136.1,0.1795]
[1763498998540,0.4968,3136.6,3136.1,0.1795]
[1763498998736,0.4716,3136.2,3136.0,0.001]
[1763498998897,0.4648,3136.1,3136.0,0.001]
[1763499000235,0.002,3136.6,3136.0,0.6824]
[1763499000395,0.29596044,3136.9,3136.6,0.405504]
[1763499000596,0.002,3137.1,3136.9,0.746204]
[1763499000910,0.002,3138.4,3137.1,0.405504]
[1763499001240,0.002,3138.4,3137.2,11.37339896]
[1763499001508,0.002,3138.4,3137.3,1.31249664]
[1763499001653,0.002,3138.4,3137.6,5.20080116]
[1763499001850,0.002,3138.4,3137.6,6.5132978]
[1763499002056,0.002,3138.4,3137.6,6.8539978]
[1763499002785,0.002,3138.4,3137.6,1.99389664]
[1763499004397,0.002,3138.4,3137.6,0.3407]
[1763499004698,0.4968,3138.4,3137.6,0.3407]
[1763499004996,0.002,3138.4,3137.6,0.3407]
[1763499005291,0.002,3138.4,3137.6,1.086904]
[1763499006188,0.4948,3138.3,3137.6,0.3407]
[1763499006971,0.002,3138.4,3137.6,0.6814]
[1763499007499,0.002,3138.4,3137.6,1.086904]
[1763499009498,0.002,3138.4,3137.9,7.99464919]
[1763499009706,0.002,3138.4,3137.9,8.33534919]
[1763499010002,0.002,3138.4,3138.0,1.31249664]
[1763499010210,0.002,3138.4,3138.0,1.99389664]
[1763499010409,0.002,3139.3,3138.4,0.3407]
[1763499010592,0.002,3139.3,3139.2,0.837004]
[1763499011261,0.002,3139.3,3139.2,1.177704]
[1763499011463,0.002,3139.3,3139.2,0.4315]
[1763499012184,0.002,3139.3,3138.5,0.3407]
[1763499012384,0.002,3139.3,3138.6,0.405504]
[1763499012759,0.002,3139.3,3139.2,0.3407]
[1763499012964,0.002,3139.3,3139.2,0.837004]
[1763499013180,0.002,3139.3,3139.2,1.177704]
[1763499013473,0.002,3139.3,3138.8,0.405504]
[1763499013671,0.002,3139.3,3138.7,0.12768354]
[1763499014389,0.002,3139.3,3138.6,0.405504]
[1763499015196,0.4655,3139.2,3138.3,0.0704]
[1763499016006,0.4655,3139.2,3138.1,0.0704]
[1763499016378,0.002,3139.3,3138.2,0.405504]
[1763499016604,0.4675,3139.3,3138.2,0.405504]
[1763499018503,0.4675,3139.3,3138.4,0.405504]
[1763499018709,0.002,3139.3,3138.4,0.405504]
[1763499018905,0.002,3139.3,3138.5,0.3407]
[1763499019392,0.4675,3139.3,3138.4,0.405504]
[1763499019872,0.002,3139.3,3138.4,0.746204]
[1763499020282,0.002,3139.3,3138.1,0.97739264]
[1763499020283,0.002,3139.3,3139.2,0.4315]
[1763499021597,0.002,3139.3,3139.2,0.7722]
[1763499022815,0.002,3139.3,3139.2,1.177704]
[1763499025589,0.002,3139.3,3139.2,0.837004]
[1763499026018,0.002,3139.3,3138.8,0.0908]
[1763499026019,0.4707,3139.3,3138.8,0.0908]
[1763499026383,0.002,3139.3,3138.8,0.0908]
[1763499027297,0.4687,3138.9,3138.1,0.0704]
[1763499027626,0.4712,3139.3,3138.3,0.405504]
[1763499027829,0.4712,3139.3,3138.2,0.3407]
[1763499028524,0.4712,3139.3,3138.3,0.405504]
[1763499029291,0.002,3139.3,3138.3,0.746204]
[1763499029494,0.002,3139.3,3138.4,0.3407]
[1763499030246,0.002,3139.3,3139.2,0.3407]
[1763499030394,0.002,3139.3,3139.2,0.837004]
[1763499030914,0.002,3139.3,3138.9,0.405504]
[1763499031355,0.4712,3139.3,3138.9,0.405504]
[1763499031536,0.002,3139.3,3138.9,0.405504]
[1763499033153,0.002,3139.3,3139.2,0.3407]
[1763499033354,0.002,3139.3,3139.2,1.086904]
[1763499033914,0.002,3139.3,3139.2,0.746204]
[1763499034423,0.002,3139.3,3138.9,0.405504]
[1763499035729,0.4687,3139.0,3138.1,0.97739264]
[1763499035923,0.4687,3138.9,3138.2,0.405504]
[1763499036267,0.4687,3138.9,3138.1,0.4111]
[1763499036450,0.6657,3138.9,3138.1,0.4111]
[1763499036967,0.6657,3138.9,3138.2,0.405504]
[1763499037136,0.4687,3138.9,3138.1,0.4111]
[1763499037340,0.4687,3138.9,3138.2,0.405504]
[1763499038180,0.197,3139.1,3138.2,0.405504]
[1763499038342,0.197,3139.1,3138.4,0.405504]
[1763499038522,0.4739,3139.3,3138.4,0.405504]
[1763499039038,0.6819,3138.5,3138.3,0.001]
[1763499039240,0.4849,3138.4,3138.3,0.001]
[1763499039434,0.9568,3138.4,3138.3,0.001]
[1763499040761,0.002,3139.3,3138.4,0.405504]
[1763499040971,0.197,3138.8,3138.4,0.405504]
[1763499042431,0.4719,3139.0,3138.3,0.001]
[1763499043352,0.197,3139.1,3138.4,0.405504]
[1763499046702,0.4719,3139.0,3138.3,0.001]
[1763499047172,0.197,3138.9,3138.3,0.001]
[1763499047890,0.197,3139.1,3138.3,0.001]
[1763499048701,0.4739,3139.3,3138.4,0.405504]
[1763499049057,0.4739,3139.3,3138.4,0.001]
[1763499049383,0.4739,3139.3,3138.4,0.406504]
[1763499049775,0.4739,3139.3,3138.4,0.001]
[1763499053396,0.4739,3139.3,3138.6,0.405504]
[1763499055500,0.002,3139.3,3138.4,0.001]
[1763499055707,0.002,3139.3,3139.2,0.3407]
[1763499056400,0.002,3139.3,3139.0,0.0908]
[1763499056974,0.4739,3139.3,3138.8,0.405504]
[1763499057749,0.002,3139.3,3138.8,0.405504]
[1763499058839,0.4719,3139.2,3138.8,0.405504]
[1763499059835,0.4719,3139.2,3138.4,0.001]
[1763499059836,0.6819,3138.9,3138.4,0.001]
[1763499060427,1.1538,3138.9,3138.4,0.001]
[1763499060840,0.6819,3138.9,3138.4,0.001]
[1763499061536,0.002,3139.3,3138.8,0.3407]
[1763499061744,0.002,3139.3,3139.2,0.3407]
[1763499061917,0.002,3139.3,3139.2,0.837004]
[1763499062113,0.002,3139.3,3139.2,1.177704]
[1763499063712,0.002,3139.3,3139.2,0.837004]
[1763499064636,0.4869,3139.3,3138.9,0.0908]
[1763499064819,0.002,3139.3,3138.9,0.0908]
[1763499065364,0.002,3139.3,3139.0,0.405504]
[1763499065516,0.002,3139.3,3139.2,0.3407]
[1763499067444,0.4848,3139.3,3138.1,10.73915255]
[1763499067646,0.4828,3139.1,3138.6,0.0908]
[1763499067855,0.4828,3139.1,3138.7,0.405504]
[1763499068052,0.4828,3139.1,3138.6,0.0908]
[1763499068356,0.4514,3139.0,3138.3,0.001]
[1763499069267,0.4534,3139.3,3138.3,0.001]
[1763499069834,0.6662,3138.5,3138.3,0.001]
[1763499070047,0.4828,3138.5,3138.3,0.001]
[1763499070446,0.4514,3139.0,3138.4,0.3417]
[1763499071542,0.1834,3139.2,3138.4,0.3417]
[1763499071745,0.002,3139.3,3138.5,1.31249664]
[1763499072363,0.4534,3139.3,3138.5,1.31249664]
[1763499073153,0.002,3139.3,3138.5,1.65319664]
[1763499073354,0.002,3139.3,3138.5,1.31249664]
[1763499073558,0.002,3139.3,3138.6,0.3407]
[1763499073753,0.002,3139.3,3138.7,0.405504]
[1763499075257,0.002,3139.3,3139.2,0.837004]
[1763499075462,0.002,3139.3,3138.9,0.405504]
[1763499075940,0.4534,3139.3,3138.9,0.405504]
[1763499076136,0.4828,3139.0,3138.5,0.90699264]
[1763499076491,0.4828,3138.6,3138.4,0.001]
[1763499077196,0.002,3139.3,3138.6,0.405504]
[1763499077395,0.002,3139.3,3138.7,1.24769264]
[1763499078076,0.4514,3139.2,3138.8,0.405504]
[1763499078264,0.4514,3139.2,3138.4,0.001]
[1763499078265,0.4828,3138.9,3138.4,0.001]
[1763499078460,0.002,3139.3,3138.4,0.001]
[1763499078461,0.4828,3138.5,3138.4,0.001]
[1763499078870,0.9342,3138.5,3138.4,0.001]
[1763499081063,0.4828,3138.5,3138.4,0.001]
[1763499081263,0.4704,3138.9,3138.4,0.001]
[1763499081464,0.483,3138.5,3138.4,0.001]
[1763499081696,0.4704,3139.2,3138.4,0.001]
[1763499081898,0.4704,3139.1,3138.4,0.001]
[1763499083104,0.483,3138.5,3138.4,0.001]
[1763499084830,0.9534,3138.5,3138.4,0.001]
[1763499085392,0.4704,3138.9,3138.4,0.001]
[1763499086320,0.483,3138.5,3138.4,0.001]
[1763499087316,0.9534,3138.5,3138.4,0.001]
[1763499091326,0.483,3138.5,3138.4,0.001]
[1763499091748,0.9534,3138.5,3138.4,0.001]
[1763499092442,0.4704,3138.9,3138.4,0.001]
[1763499092944,0.483,3138.5,3138.4,0.001]
[1763499093310,0.9534,3138.5,3138.4,0.001]
[1763499095352,0.4704,3139.0,3138.4,0.3417]
[1763499095650,0.4724,3139.3,3138.4,0.6824]
[1763499096215,0.4724,3139.3,3138.4,0.3417]
[1763499097054,0.488,3138.5,3138.4,0.001]
[1763499098142,0.9747,3138.5,3138.4,0.001]
[1763499100082,0.4867,3138.9,3138.4,0.3417]
[1763499100387,0.4867,3138.9,3138.4,0.001]
[1763499101166,0.002,3139.0,3138.8,0.3407]
[1763499101686,0.002,3139.0,3138.5,0.405504]
[1763499101891,0.002,3139.0,3138.5,0.746204]
[1763499102268,0.002,3139.0,3138.5,0.405504]
[1763499102808,0.002,3139.0,3138.5,0.746204]
[1763499102987,0.002,3139.0,3138.9,0.3407]
[1763499103693,0.002,3139.0,3138.9,0.6814]
[1763499103896,0.002,3139.0,3138.9,0.3407]
[1763499104053,0.49,3139.0,3138.5,0.405504]
[1763499104568,0.002,3139.0,3138.9,0.3407]
[1763499107480,0.49,3139.0,3138.5,0.405504]
[1763499107823,0.002,3139.0,3138.9,0.3407]
[1763499108183,0.002,3139.0,3138.9,1.086904]
[1763499109208,0.002,3139.0,3138.9,0.746204]
[1763499109409,0.002,3139.0,3138.4,0.04]
[1763499109586,0.002,3139.0,3138.9,0.3407]
[1763499109785,0.002,3139.0,3138.4,0.04]
[1763499110190,0.002,3139.0,3138.5,0.405504]
[1763499110504,0.002,3139.0,3138.9,0.3407]
[1763499111069,0.002,3139.0,3138.9,1.11876229]
[1763499111272,0.002,3139.0,3138.9,1.086904]
[1763499114246,0.002,3139.0,3138.9,1.21456961]
[1763499114945,0.002,3139.0,3138.9,1.086904]
[1763499116521,0.002,3139.0,3138.9,0.746204]
[1763499116918,0.002,3139.0,3138.9,1.086904]
[1763499117870,0.002,3139.3,3139.0,0.405504]
[1763499118046,0.002,3139.3,3139.2,0.837004]
[1763499118414,0.002,3139.3,3139.2,1.177704]
[1763499119652,0.002,3139.3,3139.2,0.837004]
[1763499120358,0.002,3139.3,3139.2,1.177704]
[1763499120518,0.002,3139.3,3139.2,1.80102387]
[1763499121246,0.002,3139.3,3139.2,1.46032387]
[1763499121662,0.002,3139.3,3139.2,1.80102387]
[1763499123665,0.002,3139.3,3139.2,1.02882387]
[1763499123843,0.002,3139.3,3139.2,1.36952387]
[1763499124571,0.002,3139.3,3139.2,1.71022387]
[1763499125269,0.002,3139.3,3139.2,1.36952387]
[1763499125464,0.002,3139.3,3139.2,1.71022387]
[1763499127167,0.002,3139.3,3139.2,1.36952387]
[1763499127366,0.002,3139.3,3139.2,1.49717808]
[1763499127575,0.002,3139.3,3139.2,1.71022387]
[1763499128677,0.002,3139.3,3139.2,1.02882387]
[1763499128876,0.002,3139.3,3139.2,1.36952387]
[1763499129266,0.002,3139.3,3139.1,1.03465377]
[1763499129267,0.4972,3139.3,3139.1,0.12766113]
[1763499129467,0.4952,3139.2,3139.0,3.86]
[1763499129668,0.4952,3139.2,3139.1,0.90699264]
[1763499129891,0.002,3139.3,3139.1,1.24769264]
[1763499130085,0.002,3139.3,3139.1,0.90699264]
[1763499130247,0.4952,3139.2,3138.6,0.4538]
[1763499130452,0.4952,3139.1,3138.4,0.04]